bitfinex/quotes_BTCUSD_20230404
["timestamp","ask_amount","ask_price","bid_price","bid_amount"]
[1680567157455,0.33744581,27784.0,27783.0,0.018144]
[1680567157673,0.3554,27783.0,27782.0,0.0207]
[1680567157901,1.12277867,27783.0,27782.0,0.0207]
[1680567158127,1.35758186,27783.0,27782.0,0.0207]
[1680567158343,0.98088186,27783.0,27782.0,0.0207]
[1680567159014,0.98109186,27783.0,27782.0,0.0207]
[1680567159662,0.99109186,27783.0,27782.0,0.0219651]
[1680567159892,0.99109186,27783.0,27782.0,0.02123447]
[1680567159893,0.99088186,27783.0,27782.0,0.02123447]
[1680567160110,0.563917,27783.0,27782.0,0.02123447]
[1680567160325,0.94994618,27783.0,27782.0,0.02123447]
[1680567160999,0.9291225,27783.0,27782.0,0.02123447]
[1680567161915,0.9399195,27783.0,27782.0,0.02123447]
[1680567162156,0.7150195,27783.0,27782.0,0.02123447]
[1680567162360,0.6942225,27783.0,27782.0,0.01923447]
[1680567162570,0.7042225,27783.0,27782.0,0.02123447]
[1680567162788,0.6942225,27783.0,27782.0,0.01923447]
[1680567162997,0.6942225,27783.0,27782.0,0.02123447]
[1680567163230,0.7042225,27783.0,27782.0,0.02123447]
[1680567163443,0.6942225,27783.0,27782.0,0.01923447]
[1680567163651,0.7042225,27783.0,27782.0,0.02123447]
[1680567164957,0.6942225,27783.0,27782.0,0.01923447]
[1680567165166,0.2,27779.0,27777.0,0.0207]
[1680567165416,1.15339437,27778.0,27777.0,0.0207]
[1680567165623,0.2,27774.0,27773.0,0.0207]
[1680567165851,0.402232,27774.0,27773.0,0.0207]
[1680567166080,0.315832,27774.0,27773.0,0.0207]
[1680567166518,0.333832,27774.0,27773.0,0.0227]
[1680567166729,0.316042,27774.0,27773.0,0.0207]
[1680567167173,0.68369568,27774.0,27773.0,0.0207]
[1680567167411,0.68348568,27774.0,27773.0,0.0207]
[1680567167842,0.68348568,27774.0,27773.0,0.0227]
[1680567167843,0.70148568,27774.0,27773.0,0.0227]
[1680567168050,0.68348568,27774.0,27773.0,0.0207]
[1680567168280,0.70148568,27774.0,27773.0,0.0227]
[1680567168534,0.68348568,27774.0,27773.0,0.0207]
[1680567168769,0.70148568,27774.0,27773.0,0.0227]
[1680567168976,0.70508768,27774.0,27773.0,0.0207]
[1680567169189,0.72308768,27774.0,27773.0,0.0227]
[1680567169424,0.70508768,27774.0,27773.0,0.0207]
[1680567169646,0.72308768,27774.0,27773.0,0.0227]
[1680567170072,0.69068468,27774.0,27773.0,0.040703]
[1680567170288,0.047632,27774.0,27773.0,0.0227]
[1680567170944,0.047632,27774.0,27773.0,0.0207]
[1680567171150,0.34099125,27774.0,27773.0,0.0207]
[1680567171361,0.44539125,27774.0,27773.0,0.0227]
[1680567171584,0.48164148,27774.0,27773.0,0.0207]
[1680567171803,0.44539125,27774.0,27773.0,0.0227]
[1680567172017,0.44539125,27774.0,27773.0,0.0207]
[1680567172018,0.42739125,27774.0,27773.0,0.0207]
[1680567172230,0.42760125,27774.0,27773.0,0.0207]
[1680567172451,0.42739125,27774.0,27773.0,0.0207]
[1680567172865,0.44539125,27774.0,27773.0,0.0227]
[1680567176441,0.35899125,27774.0,27773.0,0.0227]
[1680567176977,0.01815,27774.0,27773.0,0.37741056]
[1680567177197,0.01815,27774.0,27773.0,0.39541356]
[1680567177198,0.018,27774.0,27773.0,0.39541356]
[1680567177425,0.018,27774.0,27773.0,0.60286756]
[1680567177641,0.28920701,27779.0,27773.0,0.60086756]
[1680567177857,0.28920701,27779.0,27774.0,0.53091056]
[1680567178070,0.28920701,27779.0,27775.0,0.018001]
[1680567178283,0.28920701,27779.0,27776.0,0.35471056]
[1680567178505,0.29020701,27779.0,27776.0,0.35489056]
[1680567178932,0.28920701,27779.0,27776.0,0.35489056]
[1680567179818,0.29020701,27779.0,27776.0,0.35489056]
[1680567180031,0.28920701,27779.0,27776.0,0.35489056]
[1680567180253,0.29020701,27779.0,27776.0,0.36689056]
[1680567180459,0.031882,27778.0,27776.0,0.36689056]
[1680567180690,0.29020701,27779.0,27776.0,0.36689056]
[1680567181167,0.29020701,27779.0,27776.0,0.63074942]
[1680567181803,0.29041701,27779.0,27776.0,0.63068942]
[1680567182217,0.29020701,27779.0,27776.0,0.63074942]
[1680567183303,0.29020701,27779.0,27777.0,0.3351911]
[1680567183524,0.29020701,27779.0,27777.0,0.3353111]
[1680567183975,0.001,27779.0,27777.0,0.3353111]
[1680567184189,0.001,27779.0,27777.0,0.3351911]
[1680567184403,0.34297702,27780.0,27777.0,0.3351911]
[1680567184633,0.031632,27779.0,27777.0,0.3351911]
[1680567185469,0.031632,27779.0,27777.0,0.3411911]
[1680567185470,0.032632,27779.0,27777.0,0.3411911]
[1680567185689,0.001,27779.0,27777.0,0.3411911]
[1680567185904,0.032961,27779.0,27777.0,0.3411911]
[1680567186131,0.34297702,27780.0,27777.0,0.3351911]
[1680567186346,0.34297702,27780.0,27779.0,6.03e-05]
[1680567186564,0.37397502,27780.0,27779.0,6.03e-05]
[1680567187727,0.36876502,27780.0,27779.0,6.03e-05]
[1680567188284,0.46127162,27780.0,27779.0,6.03e-05]
[1680567188519,0.46227162,27780.0,27779.0,6.03e-05]
[1680567188741,0.46927162,27780.0,27779.0,0.0010603]
[1680567188962,0.55431542,27780.0,27779.0,0.0010603]
[1680567189192,0.63148248,27780.0,27779.0,6.03e-05]
[1680567189645,1.9270167,27780.0,27779.0,6.03e-05]
[1680567189873,2.0770167,27780.0,27779.0,6.03e-05]
[1680567190093,2.0900167,27780.0,27779.0,0.0010603]
[1680567190323,2.0900167,27780.0,27779.0,6.03e-05]
[1680567190324,2.01360884,27780.0,27779.0,6.03e-05]
[1680567191244,2.39030884,27780.0,27779.0,6.03e-05]
[1680567191692,2.41330884,27780.0,27779.0,6.03e-05]
[1680567191909,2.39030884,27780.0,27779.0,6.03e-05]
[1680567192137,2.42180884,27780.0,27779.0,0.0010603]
[1680567192357,2.69434002,27780.0,27779.0,6.03e-05]
[1680567192587,2.71734002,27780.0,27779.0,0.0010603]
[1680567192808,2.69434002,27780.0,27779.0,6.03e-05]
[1680567193031,2.71734002,27780.0,27779.0,0.0010603]
[1680567193259,2.71734002,27780.0,27779.0,6.03e-05]
[1680567193260,2.99434002,27780.0,27779.0,6.03e-05]
[1680567194604,3.01734002,27780.0,27779.0,0.0010603]
[1680567195063,2.99434002,27780.0,27779.0,6.03e-05]
[1680567195294,3.01734002,27780.0,27779.0,0.0010603]
[1680567195762,0.2,27774.0,27773.0,0.0207]
[1680567195990,0.97648937,27774.0,27773.0,0.0207]
[1680567196485,2.13012678,27774.0,27773.0,0.0207]
[1680567197047,2.51532678,27774.0,27773.0,0.0207]
[1680567197320,2.54232678,27774.0,27773.0,0.0207]
[1680567197604,2.82236026,27774.0,27773.0,0.0207]
[1680567199706,1.52682604,27774.0,27773.0,0.0207]
[1680567201042,1.51832604,27774.0,27773.0,0.0207]
[1680567201305,1.23829256,27774.0,27773.0,0.0207]
[1680567201570,1.21129256,27774.0,27773.0,0.0207]
[1680567201842,1.15189256,27774.0,27773.0,0.0207]
[1680567202634,1.12489256,27774.0,27773.0,0.0207]
[1680567202897,1.15189256,27774.0,27773.0,0.0207]
[1680567203156,1.27452262,27774.0,27773.0,0.0207]
[1680567203584,1.30152262,27774.0,27773.0,0.0207]
[1680567203585,1.27452262,27774.0,27773.0,0.0207]
[1680567203803,1.30152262,27774.0,27773.0,0.0207]
[1680567204018,1.27452262,27774.0,27773.0,0.0207]
[1680567204286,1.30152262,27774.0,27773.0,0.0207]
[1680567204582,1.60578948,27774.0,27773.0,0.0207]
[1680567204868,1.27452262,27774.0,27773.0,0.0207]
[1680567205139,1.05472968,27774.0,27773.0,0.0207]
[1680567205406,0.94702768,27774.0,27773.0,0.0207]
[1680567205664,0.97402768,27774.0,27773.0,0.0207]
[1680567206177,1.00102768,27774.0,27773.0,0.0207]
[1680567206640,0.94702768,27774.0,27773.0,0.0207]
[1680567206863,1.11313897,27774.0,27773.0,0.0207]
[1680567207084,1.08613897,27774.0,27773.0,0.0207]
[1680567207312,1.11113897,27774.0,27773.0,0.0207]
[1680567207818,0.97202768,27774.0,27773.0,0.0207]
[1680567208500,0.94702768,27774.0,27773.0,0.0207]
[1680567208737,0.97402768,27774.0,27773.0,0.0207]
[1680567208957,0.94702768,27774.0,27773.0,0.0207]
[1680567209176,0.97402768,27774.0,27773.0,0.0207]
[1680567209394,0.73250953,27774.0,27773.0,0.0207]
[1680567209613,1.12241653,27774.0,27773.0,0.0207]
[1680567209845,0.76770597,27774.0,27773.0,0.0207]
[1680567210534,0.74070597,27774.0,27773.0,0.0207]
[1680567211235,0.031774,27774.0,27773.0,0.0207]
[1680567211477,0.032197,27774.0,27773.0,0.0207]
[1680567211695,0.059197,27774.0,27773.0,0.0207]
[1680567211918,0.032197,27774.0,27773.0,0.0207]
[1680567212139,0.059197,27774.0,27773.0,0.0207]
[1680567212594,0.059197,27774.0,27773.0,0.02088]
[1680567212801,0.022306,27774.0,27773.0,0.0207]
[1680567213028,0.022306,27774.0,27773.0,0.02088]
[1680567215715,0.022306,27774.0,27773.0,0.2660483]
[1680567215939,0.023707,27776.0,27773.0,0.2660483]
[1680567216382,0.41370777,27776.0,27773.0,0.2660483]
[1680567216616,0.023391,27775.0,27773.0,0.2659883]
[1680567216978,0.023391,27775.0,27773.0,0.2660483]
[1680567218037,0.023391,27775.0,27773.0,0.2680483]
[1680567218295,0.023391,27775.0,27773.0,0.2660483]
[1680567218517,0.035391,27775.0,27773.0,0.2680483]
[1680567218722,0.022604,27774.0,27773.0,0.2680483]
[1680567219836,0.022604,27774.0,27773.0,0.2660483]
[1680567220028,0.02301,27775.0,27773.0,0.2660483]
[1680567220738,0.011,27774.0,27773.0,0.2680483]
[1680567220862,0.021482,27774.0,27773.0,0.2660483]
[1680567221081,0.023478,27775.0,27773.0,0.2700483]
[1680567221453,0.023478,27775.0,27773.0,0.2660483]
[1680567221665,0.001,27774.0,27773.0,0.2770483]
[1680567222099,0.022305,27774.0,27773.0,0.02088]
[1680567222309,0.022305,27774.0,27773.0,0.0247]
[1680567222529,0.022305,27774.0,27773.0,0.02088]
[1680567223363,0.023305,27774.0,27773.0,0.03188]
[1680567223588,0.022305,27774.0,27773.0,0.02088]
[1680567223792,0.022305,27774.0,27773.0,0.02488]
[1680567224198,0.022305,27774.0,27773.0,0.02088]
[1680567224429,0.023305,27774.0,27773.0,0.03188]
[1680567224632,0.022305,27774.0,27773.0,0.02088]
[1680567224906,0.022305,27774.0,27773.0,0.02488]
[1680567225311,0.022305,27774.0,27773.0,0.02088]
[1680567225782,0.022305,27774.0,27773.0,0.46160231]
[1680567226371,0.001,27774.0,27773.0,0.47260231]
[1680567226602,0.02084,27774.0,27773.0,0.46160231]
[1680567226824,0.02084,27774.0,27773.0,0.02488]
[1680567227014,0.04398905,27774.0,27773.0,0.0207]
[1680567227221,0.36423665,27774.0,27773.0,0.0207]
[1680567227357,0.36523665,27774.0,27773.0,0.0317]
[1680567227600,0.36523665,27774.0,27773.0,0.0207]
[1680567227814,0.71994721,27774.0,27773.0,0.0247]
[1680567228019,0.71894721,27774.0,27773.0,0.0207]
[1680567228236,0.72994721,27774.0,27773.0,0.0227]
[1680567229281,0.82873213,27774.0,27773.0,0.0227]
[1680567229485,0.58474048,27774.0,27773.0,0.0227]
[1680567229703,0.64834048,27774.0,27773.0,0.0227]
[1680567229915,1.01157092,27774.0,27773.0,0.0227]
[1680567230768,0.86157092,27774.0,27773.0,0.0227]
[1680567230996,0.751985,27774.0,27773.0,0.0227]
[1680567231422,0.39727444,27774.0,27773.0,0.0227]
[1680567231864,0.40807544,27774.0,27773.0,0.0227]
[1680567232600,0.39727444,27774.0,27773.0,0.0227]
[1680567233581,0.40807544,27774.0,27773.0,0.0227]
[1680567234671,0.40828544,27774.0,27773.0,0.0227]
[1680567235041,0.40807544,27774.0,27773.0,0.0227]
[1680567235237,0.39727444,27774.0,27773.0,0.0227]
[1680567236366,0.40807544,27774.0,27773.0,0.0227]
[1680567239564,0.39727444,27774.0,27773.0,0.0227]
[1680567239785,0.40807544,27774.0,27773.0,0.0227]
[1680567241750,0.82077474,27774.0,27773.0,0.0227]
[1680567243268,0.75571866,27774.0,27773.0,0.0227]
[1680567244146,0.74491766,27774.0,27773.0,0.0227]
[1680567244607,0.75571866,27774.0,27773.0,0.0227]
[1680567245462,0.02697666,27774.0,27773.0,0.0227]
[1680567249054,0.011,27774.0,27773.0,0.59218774]
[1680567249516,0.011,27774.0,27773.0,0.59230774]
[1680567249765,0.011,27774.0,27773.0,0.59236774]
[1680567250418,0.011,27774.0,27773.0,0.59036774]
[1680567250635,0.001,27774.0,27773.0,0.61736774]
[1680567251511,0.001,27774.0,27773.0,0.53156774]
[1680567252164,0.001,27774.0,27773.0,0.51356474]
[1680567253516,0.001,27774.0,27773.0,0.53156774]
[1680567254616,0.001,27774.0,27773.0,0.51356474]
[1680567255055,0.001,27774.0,27773.0,0.73156774]
[1680567255270,0.001,27774.0,27773.0,0.91971874]
[1680567255487,0.001,27774.0,27773.0,0.88156774]
[1680567257450,0.001,27774.0,27773.0,0.71356474]
[1680567257661,0.001,27774.0,27773.0,0.73156774]
[1680567259079,0.001,27774.0,27773.0,0.265883]
[1680567259295,0.001,27774.0,27773.0,0.72391377]
[1680567259732,0.001,27774.0,27773.0,0.79209558]
[1680567259946,0.001,27774.0,27773.0,0.70591077]
[1680567262122,0.34570672,27776.0,27773.0,0.67891077]
[1680567262796,0.001,27774.0,27773.0,0.70291077]
[1680567263019,0.34570672,27776.0,27773.0,0.67891077]
[1680567263233,0.34661489,27776.0,27773.0,0.69691077]
[1680567263447,0.001,27776.0,27773.0,0.69691077]
[1680567263658,0.001,27776.0,27774.0,0.21207213]
[1680567264976,0.021243,27777.0,27774.0,0.21207213]
[1680567265243,0.001,27776.0,27774.0,0.22307213]
[1680567265427,0.021639,27776.0,27774.0,0.22325213]
[1680567265837,0.020639,27776.0,27774.0,0.21225213]
[1680567266057,0.020639,27776.0,27774.0,0.22325213]
[1680567266278,0.40714035,27776.0,27774.0,0.00018]
[1680567266540,0.40714035,27776.0,27774.0,0.011]
[1680567266541,0.34448255,27775.0,27774.0,0.011]
[1680567267679,0.34448255,27775.0,27773.0,0.22088]
[1680567267912,0.020673,27774.0,27773.0,0.22088]
[1680567268920,0.021673,27774.0,27773.0,0.23888]
[1680567269139,0.021673,27774.0,27773.0,0.67061709]
[1680567269677,0.001,27774.0,27773.0,0.67061709]
[1680567269890,0.001,27774.0,27773.0,0.67043709]
[1680567270075,0.001,27774.0,27773.0,0.67061709]
[1680567270515,0.001,27774.0,27773.0,0.68862009]
[1680567270733,0.001,27774.0,27773.0,0.68844009]
[1680567270951,0.001,27774.0,27773.0,0.83856009]
[1680567271616,0.001,27774.0,27773.0,0.83862009]
[1680567271830,0.001,27774.0,27773.0,0.76159356]
[1680567272045,0.001,27774.0,27773.0,1.2294568]
[1680567272467,0.001,27774.0,27773.0,1.2295768]
[1680567272902,0.001,27774.0,27773.0,1.2296368]
[1680567273122,0.001,27774.0,27773.0,1.35891132]
[1680567273353,0.001,27774.0,27773.0,1.35794332]
[1680567273937,0.001,27774.0,27773.0,1.32063032]
[1680567274142,0.001,27774.0,27773.0,1.1913558]
[1680567278088,0.35512845,27777.0,27774.0,0.37831743]
[1680567278286,0.020056,27776.0,27775.0,0.018001]
[1680567278489,0.00099998,27780.0,27775.0,0.168001]
[1680567278490,0.28527199,27780.0,27775.0,0.168001]
[1680567278699,0.28527199,27780.0,27775.0,0.044381]
[1680567278913,0.019685,27779.0,27775.0,0.044201]
[1680567279124,0.019685,27779.0,27775.0,0.018001]
[1680567279330,0.019685,27779.0,27775.0,0.168001]
[1680567279534,0.29400566,27779.0,27775.0,0.018181]
[1680567279748,0.020224,27778.0,27775.0,0.018001]
[1680567279958,0.22451236,27777.0,27775.0,0.004]
[1680567280174,0.019745,27776.0,27774.0,0.00018]
[1680567280388,0.019745,27776.0,27775.0,0.004]
[1680567280603,0.019745,27776.0,27774.0,0.00018]
[1680567280815,0.019745,27776.0,27775.0,0.004]
[1680567281027,0.019745,27776.0,27774.0,0.00018]
[1680567281247,0.019745,27776.0,27775.0,0.004]
[1680567282762,0.019745,27776.0,27774.0,0.00018]
[1680567283048,0.019745,27776.0,27775.0,0.004]
[1680567283820,0.019745,27776.0,27775.0,0.00418]
[1680567284120,0.019745,27776.0,27775.0,0.41209814]
[1680567284524,0.32346044,27779.0,27775.0,0.41203814]
[1680567284810,0.020466,27778.0,27775.0,0.45629914]
[1680567285069,0.020466,27778.0,27775.0,0.41209814]
[1680567285374,0.27148378,27778.0,27775.0,0.41209814]
[1680567285830,0.019693,27777.0,27775.0,0.40809814]
[1680567285843,0.019693,27777.0,27775.0,0.41209814]
[1680567286092,0.019693,27777.0,27775.0,0.40809814]
[1680567286354,0.019693,27777.0,27775.0,0.43009914]
[1680567286639,0.019693,27777.0,27775.0,0.40809814]
[1680567286870,0.25101778,27778.0,27776.0,0.35544397]
[1680567287127,0.020304,27777.0,27776.0,0.35562397]
[1680567288035,0.020304,27777.0,27776.0,0.35556397]
[1680567288690,0.020304,27777.0,27776.0,0.35562397]
[1680567288921,0.022304,27777.0,27776.0,0.35562397]
[1680567291099,0.002,27777.0,27776.0,0.35562397]
[1680567291764,0.022756,27777.0,27776.0,0.35562397]
[1680567291961,0.02185,27777.0,27776.0,0.35562397]
[1680567292434,0.022299,27777.0,27776.0,0.35562397]
[1680567292871,0.020299,27777.0,27776.0,0.35562397]
[1680567293099,0.021299,27777.0,27776.0,0.37362397]
[1680567293334,0.001,27777.0,27776.0,0.37362397]
[1680567293791,0.001,27777.0,27776.0,0.39156497]
[1680567294017,0.0772,27779.0,27776.0,0.37356497]
[1680567294455,0.001,27777.0,27776.0,0.39156497]
[1680567295108,0.0772,27779.0,27776.0,0.37356497]
[1680567295326,0.019926,27778.0,27776.0,0.37356397]
[1680567295545,0.019926,27778.0,27776.0,0.37356497]
[1680567295773,0.001,27777.0,27776.0,0.39156497]
[1680567296626,0.0772,27779.0,27776.0,0.37356497]
[1680567296850,0.020413,27778.0,27776.0,0.39156497]
[1680567297099,0.0772,27779.0,27776.0,0.37356497]
[1680567297321,0.0772,27779.0,27776.0,0.39156497]
[1680567297542,0.001,27777.0,27776.0,0.39156497]
[1680567297761,0.0772,27779.0,27776.0,0.37356497]
[1680567297973,0.001,27778.0,27776.0,0.39156497]
[1680567298195,0.001,27778.0,27777.0,0.15]
[1680567298464,0.0772,27779.0,27777.0,0.15]
[1680567298686,0.2,27774.0,27773.0,0.08632671]
[1680567298934,0.5767,27771.0,27768.0,0.19104162]
[1680567299161,0.5767,27768.0,27766.0,0.00018]
[1680567299381,0.5767,27768.0,27765.0,0.0208]
[1680567299382,0.3767,27766.0,27765.0,0.01329782]
[1680567299618,0.7267,27765.0,27760.0,6e-05]
[1680567299840,0.155,27761.0,27758.0,0.0208]
[1680567300056,0.1556,27759.0,27758.0,0.0208]
[1680567300274,0.32823881,27759.0,27758.0,0.0208]
[1680567300714,0.186342,27759.0,27758.0,0.0208]
[1680567301386,0.54105256,27759.0,27758.0,0.0218]
[1680567301604,0.186342,27759.0,27758.0,0.37361711]
[1680567302259,0.117042,27759.0,27758.0,0.37361711]
[1680567302485,0.117042,27759.0,27758.0,0.0208]
[1680567302701,0.144042,27759.0,27758.0,0.0218]
[1680567302923,0.144042,27759.0,27758.0,0.0208]
[1680567302924,0.1352511,27759.0,27758.0,0.0208]
[1680567303151,0.144042,27759.0,27758.0,0.0218]
[1680567303410,0.046935,27759.0,27758.0,0.0218]
[1680567303663,0.046935,27759.0,27758.0,0.35947091]
[1680567303664,0.019935,27759.0,27758.0,0.35947091]
[1680567303891,0.026,27759.0,27758.0,0.35947091]
[1680567304128,0.021091,27759.0,27758.0,0.35947091]
[1680567304353,0.001,27759.0,27758.0,0.36847091]
[1680567305248,0.020207,27761.0,27758.0,0.35947091]
[1680567305477,0.001,27759.0,27758.0,0.056]
[1680567305691,0.001,27759.0,27758.0,0.0298]
[1680567306192,0.097405,27764.0,27758.0,0.0208]
[1680567306413,0.001,27761.0,27759.0,0.0262]
[1680567306632,0.019807,27763.0,27760.0,0.36087658]
[1680567307947,0.019807,27763.0,27760.0,0.37472577]
[1680567308173,0.004,27761.0,27758.0,0.02098]
[1680567308403,0.14189681,27765.0,27760.0,0.35289415]
[1680567308626,0.011,27763.0,27760.0,0.38009415]
[1680567308843,0.010804,27766.0,27761.0,0.15]
[1680567309063,0.020292,27765.0,27761.0,0.1762]
[1680567309286,0.020292,27765.0,27761.0,0.15]
[1680567309505,0.020292,27765.0,27762.0,0.33538932]
[1680567309723,0.002,27763.0,27762.0,0.33538932]
[1680567309957,0.010804,27767.0,27762.0,0.33538932]
[1680567310203,0.002,27765.0,27762.0,0.36158932]
[1680567310423,0.002,27765.0,27762.0,0.33538932]
[1680567310645,0.022556,27765.0,27762.0,0.33538932]
[1680567311063,0.010804,27766.0,27762.0,0.33538932]
[1680567311294,0.020183,27765.0,27762.0,0.33538932]
[1680567311555,0.010804,27767.0,27762.0,0.33538932]
[1680567311556,0.020375,27766.0,27762.0,0.33538932]
[1680567311781,0.020375,27766.0,27762.0,0.34438932]
[1680567312008,0.001,27765.0,27763.0,0.33930675]
[1680567312231,0.020375,27766.0,27763.0,0.33930675]
[1680567312668,0.001,27765.0,27763.0,0.33930675]
[1680567312918,0.020375,27766.0,27763.0,0.33930675]
[1680567313137,0.020375,27766.0,27763.0,0.34230675]
[1680567313364,0.020375,27766.0,27764.0,0.0262]
[1680567313600,0.7379,27769.0,27765.0,0.2]
[1680567313601,0.00021,27769.0,27765.0,0.2]
[1680567313852,0.00098618,27770.0,27768.0,0.2]
[1680567314077,0.00098618,27770.0,27769.0,0.41029656]
[1680567314301,0.00021,27776.0,27769.0,0.41029656]
[1680567314530,0.09761,27777.0,27770.0,0.42312978]
[1680567314756,0.09761,27777.0,27771.0,0.15]
[1680567314757,0.019843,27776.0,27771.0,0.15]
[1680567314987,0.019843,27776.0,27772.0,0.0262]
[1680567315253,0.00021,27777.0,27773.0,0.35471056]
[1680567315494,0.00120102,27780.0,27774.0,0.119056]
[1680567315726,0.001,27777.0,27776.0,0.15]
[1680567315958,0.02298001,27781.0,27776.0,0.168]
[1680567316180,0.019801,27780.0,27777.0,0.0262]
[1680567316404,0.019801,27780.0,27776.0,0.168]
[1680567316705,0.02277001,27781.0,27776.0,0.168]
[1680567316942,0.02277001,27781.0,27777.0,0.0262]
[1680567317180,0.02277001,27781.0,27778.0,0.4484389]
[1680567317465,0.02277001,27781.0,27779.0,0.15]
[1680567317747,0.001,27780.0,27779.0,0.15]
[1680567318018,0.02377001,27781.0,27779.0,0.15]
[1680567318473,0.02277001,27781.0,27779.0,0.15]
[1680567318744,0.02377001,27781.0,27779.0,0.007]
[1680567319047,0.020497,27780.0,27778.0,0.4304399]
[1680567319480,0.02277001,27781.0,27778.0,0.4304399]
[1680567319921,0.020174,27780.0,27779.0,0.014]
[1680567320151,0.020174,27780.0,27778.0,0.4304399]
[1680567320382,0.02017287,27780.0,27778.0,0.4304399]
[1680567322427,0.02017287,27780.0,27778.0,0.49030199]
[1680567322651,0.02017287,27780.0,27778.0,0.4304399]
[1680567322875,0.001,27780.0,27778.0,0.4624389]
[1680567323176,0.001,27780.0,27779.0,0.35471056]
[1680567323379,0.001,27780.0,27779.0,0.83525099]
[1680567324265,0.02277001,27781.0,27779.0,0.83525099]
[1680567324485,0.02277001,27781.0,27780.0,0.038779]
[1680567324715,0.02277001,27781.0,27780.0,0.52270856]
[1680567324939,0.02277001,27781.0,27780.0,0.97469755]
[1680567325155,0.02277001,27781.0,27780.0,0.93539355]
[1680567326271,0.02277001,27781.0,27780.0,0.91739555]
[1680567326721,0.02377001,27781.0,27780.0,0.94439555]
[1680567326991,0.02277001,27781.0,27780.0,0.93539355]
[1680567327338,0.02377001,27781.0,27780.0,0.96239355]
[1680567329740,0.02377001,27781.0,27780.0,1.00156355]
[1680567330847,0.02377001,27781.0,27780.0,1.00231155]
[1680567331092,0.02377001,27781.0,27780.0,0.96239355]
[1680567331308,0.02377001,27781.0,27780.0,1.00166755]
[1680567334165,0.02277001,27781.0,27780.0,0.97466755]
[1680567334382,0.02377001,27781.0,27780.0,0.99466755]
[1680567336378,0.02377001,27781.0,27780.0,1.16028857]
[1680567336592,0.02377001,27781.0,27780.0,0.77799462]
[1680567336806,0.02277001,27781.0,27780.0,0.75799462]
[1680567337469,0.02377001,27781.0,27780.0,0.77799462]
[1680567337705,0.02277001,27781.0,27780.0,0.75799462]
[1680567337922,0.00100001,27781.0,27780.0,0.77799462]
[1680567338575,0.00100001,27781.0,27780.0,0.69159462]
[1680567338797,0.00100001,27781.0,27780.0,1.12814774]
[1680567339243,0.00100001,27781.0,27780.0,0.69159462]
[1680567340338,0.00100001,27781.0,27780.0,1.02490644]
[1680567340752,0.00100001,27781.0,27780.0,0.69159462]
[1680567341632,0.00100001,27781.0,27780.0,1.11947307]
[1680567342065,0.00100001,27781.0,27780.0,1.08019907]
[1680567342282,0.00100001,27781.0,27780.0,1.11916707]
[1680567345540,0.00100001,27781.0,27780.0,1.08019907]
[1680567345748,0.00100001,27781.0,27780.0,0.97058701]
[1680567346377,0.01877002,27783.0,27781.0,0.15]
[1680567346608,0.01877002,27783.0,27782.0,0.017997]
[1680567347564,0.01977002,27783.0,27781.0,0.85622122]
[1680567348022,0.01977002,27783.0,27782.0,0.007]
[1680567348955,0.01877002,27783.0,27781.0,0.84222122]
[1680567349183,0.01977002,27783.0,27782.0,0.15]
[1680567349460,0.01877002,27783.0,27782.0,0.58616492]
[1680567349693,0.01977002,27783.0,27782.0,0.59316492]
[1680567349926,0.01877002,27783.0,27782.0,0.58616492]
[1680567350162,0.01977002,27783.0,27782.0,0.58616492]
[1680567350383,0.01877002,27783.0,27782.0,0.43616492]
[1680567350608,0.01977002,27783.0,27782.0,0.44316492]
[1680567351733,0.01477002,27783.0,27782.0,0.44316492]
[1680567352182,0.01477002,27783.0,27782.0,0.53977017]
[1680567352815,1.31015365,27783.0,27782.0,0.53977017]
[1680567353038,1.33019865,27783.0,27782.0,0.53995017]
[1680567353521,1.33019865,27783.0,27782.0,0.44334492]
[1680567359928,1.33019865,27783.0,27782.0,0.79805548]
[1680567360153,1.31015365,27783.0,27782.0,0.79805548]
[1680567360839,1.33034065,27783.0,27782.0,0.79805548]
[1680567361074,1.31015365,27783.0,27782.0,0.79805548]
[1680567367500,0.01477002,27783.0,27782.0,0.79805548]
[1680567367717,0.01477002,27783.0,27782.0,0.79591808]
[1680567368164,0.01477002,27783.0,27782.0,0.87732759]
[1680567372120,0.01477002,27783.0,27782.0,0.89532459]
[1680567372342,0.01477002,27783.0,27782.0,0.87732759]
[1680567373001,0.01477002,27783.0,27782.0,0.89532459]
[1680567373224,0.01477002,27783.0,27782.0,0.87732759]
[1680567375084,0.01477002,27783.0,27782.0,0.89532459]
[1680567375490,0.01477002,27783.0,27782.0,0.87732759]
[1680567377159,0.01477002,27783.0,27782.0,0.87732759]
[1680567380189,0.01477002,27783.0,27782.0,0.79591808]
[1680567382753,0.01477002,27783.0,27782.0,0.81391508]
[1680567382965,0.01477002,27783.0,27782.0,0.79591808]
[1680567386064,0.01477002,27783.0,27782.0,0.81391508]
[1680567388617,0.01477002,27783.0,27782.0,0.79591808]
[1680567389750,0.01477002,27783.0,27782.0,0.81391508]
[1680567390209,0.01466573,27783.0,27782.0,0.81391508]
[1680567392871,0.01466573,27783.0,27782.0,0.85301508]
[1680567393132,0.01466573,27783.0,27782.0,0.81391508]
[1680567393345,0.01466573,27783.0,27782.0,0.92379198]
[1680567394472,0.01466573,27783.0,27782.0,0.79591808]
[1680567395337,0.01466573,27783.0,27782.0,0.81391508]
[1680567397390,0.01466573,27783.0,27782.0,0.85230608]
[1680567397607,0.01466573,27783.0,27782.0,0.81391508]
[1680567402910,0.01466573,27783.0,27782.0,0.85316408]
[1680567403139,0.01466573,27783.0,27782.0,0.81501508]
[1680567403586,0.01466573,27783.0,27782.0,0.79701808]
[1680567404970,0.01466573,27783.0,27782.0,0.81501508]
[1680567405416,0.01466573,27783.0,27782.0,0.79701808]
[1680567407287,0.01466573,27783.0,27782.0,0.81501508]
[1680567411413,0.01457877,27783.0,27782.0,0.81501508]
[1680567419484,0.01457877,27783.0,27782.0,0.92377015]
[1680567420355,0.03532377,27783.0,27782.0,0.92377015]
[1680567420773,0.01457877,27783.0,27782.0,0.92377015]
[1680567421433,0.01457877,27783.0,27782.0,0.81501508]
[1680567421861,0.03327477,27783.0,27782.0,0.81501508]
[1680567422075,0.01457877,27783.0,27782.0,0.81501508]
[1680567423798,0.03829639,27783.0,27782.0,0.79701808]